bitfinex/quotes_BTCUSD_20240803
["timestamp","ask_amount","ask_price","bid_price","bid_amount"]
[1722698101798,4.46343708,62108.0,62107.0,0.154466]
[1722698102000,4.46543708,62108.0,62107.0,0.154466]
[1722698102404,4.46542798,62108.0,62107.0,0.154416]
[1722698102610,4.41724142,62108.0,62107.0,0.154416]
[1722698102825,4.73926042,62108.0,62107.0,0.009916]
[1722698103032,5.0615381,62108.0,62107.0,0.009916]
[1722698103432,5.08222134,62108.0,62107.0,0.009916]
[1722698103548,4.96175902,62108.0,62107.0,0.009916]
[1722698105330,4.83575902,62108.0,62107.0,0.009916]
[1722698105804,4.70141255,62108.0,62107.0,0.148716]
[1722698106017,4.83529793,62108.0,62107.0,0.148716]
[1722698106242,4.19125993,62108.0,62107.0,0.148716]
[1722698106477,1.99945357,62108.0,62107.0,0.148716]
[1722698106703,2.29738089,62108.0,62107.0,0.148716]
[1722698106909,2.61939989,62108.0,62107.0,0.148716]
[1722698107724,2.64239989,62108.0,62107.0,0.148716]
[1722698108125,2.66649157,62108.0,62107.0,0.148716]
[1722698109129,2.55670586,62108.0,62107.0,0.148716]
[1722698109396,2.74696421,62108.0,62107.0,0.148716]
[1722698109803,2.62645959,62108.0,62107.0,0.148716]
[1722698110003,2.74696421,62108.0,62107.0,0.148716]
[1722698110207,2.66651043,62108.0,62107.0,0.148716]
[1722698110406,2.57007736,62108.0,62107.0,0.148716]
[1722698110606,2.64240244,62108.0,62107.0,0.148716]
[1722698111201,2.57007736,62108.0,62107.0,0.148716]
[1722698111405,2.66651043,62108.0,62107.0,0.148716]
[1722698111615,2.57007736,62108.0,62107.0,0.148716]
[1722698112631,2.55672335,62108.0,62107.0,0.148716]
[1722698112872,2.74697484,62108.0,62107.0,0.148716]
[1722698113001,3.06899384,62108.0,62107.0,0.148716]
[1722698113234,3.21343516,62108.0,62107.0,0.148716]
[1722698115335,3.21343516,62108.0,62107.0,0.087116]
[1722698115537,3.21343516,62108.0,62107.0,0.009916]
[1722698115974,3.09291305,62108.0,62107.0,0.009916]
[1722698116188,3.05822024,62108.0,62107.0,0.009916]
[1722698116406,3.4137907,62108.0,62107.0,0.009916]
[1722698118425,3.4137907,62108.0,62107.0,0.150816]
[1722698119681,3.41351546,62108.0,62107.0,0.150816]
[1722698121104,3.41632011,62108.0,62107.0,0.150816]
[1722698121747,3.41632011,62108.0,62107.0,0.088116]
[1722698122172,3.41632011,62108.0,62107.0,0.009916]
[1722698125515,3.47752011,62108.0,62107.0,0.009916]
[1722698126589,3.06102489,62108.0,62107.0,0.009916]
[1722698126797,3.41569952,62108.0,62107.0,0.009916]
[1722698130666,3.56036452,62108.0,62107.0,0.009916]
[1722698131941,3.56037316,62108.0,62107.0,0.009916]
[1722698133037,3.41569952,62108.0,62107.0,0.009916]
[1722698133244,3.41569952,62108.0,62107.0,0.072616]
[1722698133738,3.41575752,62108.0,62107.0,0.072616]
[1722698134374,2.27810116,62108.0,62107.0,0.150816]
[1722698135012,2.27810116,62108.0,62107.0,0.009916]
[1722698135402,2.27812519,62108.0,62107.0,0.009916]
[1722698135816,2.35322519,62108.0,62107.0,0.009916]
[1722698136047,2.20852752,62108.0,62107.0,0.009916]
[1722698136462,3.55552752,62108.0,62107.0,0.009916]
[1722698137093,3.20079489,62108.0,62107.0,0.009916]
[1722698137329,3.61035178,62108.0,62107.0,0.009916]
[1722698137607,3.75129877,62108.0,62107.0,0.009916]
[1722698137803,4.6621116,62108.0,62107.0,0.009916]
[1722698138012,6.34511927,62108.0,62107.0,0.009916]
[1722698138225,6.66713827,62108.0,62107.0,0.009916]
[1722698138435,0.76073,62100.0,62095.0,0.00157439]
[1722698138647,5.29721124,62100.0,62094.0,0.009966]
[1722698138860,9.34424284,62100.0,62094.0,0.009966]
[1722698139070,9.66630384,62100.0,62094.0,0.009966]
[1722698139897,9.68030384,62100.0,62094.0,0.009966]
[1722698140121,9.66030384,62100.0,62094.0,0.009966]
[1722698140317,9.68030384,62100.0,62094.0,0.009966]
[1722698140527,9.32881041,62100.0,62094.0,0.009966]
[1722698140738,9.68032487,62100.0,62094.0,0.009966]
[1722698141154,9.66032487,62100.0,62094.0,0.009966]
[1722698141381,9.74402487,62100.0,62094.0,0.009966]
[1722698141569,9.76683074,62100.0,62094.0,0.009966]
[1722698141987,9.76083074,62100.0,62094.0,0.009966]
[1722698142190,9.78083074,62100.0,62094.0,0.009966]
[1722698142396,9.76083074,62100.0,62094.0,0.009966]
[1722698142602,9.78083074,62100.0,62094.0,0.009966]
[1722698143658,9.60347557,62100.0,62094.0,0.009966]
[1722698143872,9.62347557,62100.0,62094.0,0.009966]
[1722698144283,9.6333546,62100.0,62099.0,1e-07]
[1722698144914,9.6133546,62100.0,62099.0,1e-07]
[1722698145140,9.77070977,62100.0,62099.0,1e-07]
[1722698145358,9.95284083,62100.0,62099.0,1e-07]
[1722698145567,2.293265,62095.0,62094.0,0.009966]
[1722698145812,4.45464944,62095.0,62094.0,0.009966]
[1722698146055,4.4125387,62095.0,62094.0,0.009966]
[1722698146258,4.4125387,62095.0,62093.0,0.009966]
[1722698146259,2.071206,62094.0,62093.0,0.009966]
[1722698146468,2.9828797,62094.0,62093.0,0.009966]
[1722698146875,3.6828797,62094.0,62093.0,0.009966]
[1722698147497,1.859553,62088.0,62086.0,0.009966]
[1722698147712,1.859553,62088.0,62083.0,0.02113999]
[1722698147713,0.830816,62084.0,62083.0,0.02113999]
[1722698147923,1.707365,62075.0,62065.0,0.21609999]
[1722698148128,4.25255368,62075.0,62065.0,0.21609999]
[1722698148764,5.04844019,62075.0,62065.0,0.21609999]
[1722698148995,4.95255368,62075.0,62074.0,0.14499999]
[1722698149207,5.03442954,62075.0,62074.0,0.14499999]
[1722698149423,4.96255368,62075.0,62074.0,0.14499999]
[1722698149647,6.65440055,62075.0,62074.0,0.14499999]
[1722698149871,7.6270506,62075.0,62074.0,0.14499999]
[1722698150077,7.6070506,62075.0,62074.0,0.14499999]
[1722698150287,7.55808425,62075.0,62074.0,0.14499999]
[1722698150492,7.56908399,62075.0,62074.0,0.14499999]
[1722698150700,7.46233061,62075.0,62074.0,0.14499999]
[1722698151168,2.60454,62066.0,62065.0,0.11777599]
[1722698151351,1.183126,62057.0,62056.0,0.08563799]
[1722698151574,1.183126,62057.0,62047.0,0.14999999]
[1722698151575,1.485527,62048.0,62047.0,0.14999999]
[1722698151799,3.17013844,62048.0,62047.0,0.14999999]
[1722698152030,3.01343844,62048.0,62047.0,0.14999999]
[1722698152235,3.18089768,62048.0,62047.0,0.14999999]
[1722698152456,3.2152099,62048.0,62047.0,0.14999999]
[1722698152665,3.18089768,62048.0,62047.0,0.14999999]
[1722698153132,3.88089768,62048.0,62047.0,0.14999999]
[1722698153350,3.887739,62048.0,62047.0,0.14999999]
[1722698153580,3.565408,62048.0,62047.0,0.14999999]
[1722698154014,3.43145856,62048.0,62047.0,0.14999999]
[1722698154238,3.56548227,62048.0,62047.0,0.14999999]
[1722698154445,2.92015127,62048.0,62047.0,0.14999999]
[1722698154659,2.17548927,62048.0,62047.0,0.22759999]
[1722698154863,0.80048295,62048.0,62047.0,0.22759999]
[1722698155097,0.97564795,62048.0,62047.0,0.22759999]
[1722698155305,0.80048295,62048.0,62047.0,0.22759999]
[1722698155524,0.97564795,62048.0,62047.0,0.23750584]
[1722698155940,0.98692962,62048.0,62047.0,0.23750584]
[1722698156145,1.40926062,62048.0,62047.0,0.23750584]
[1722698156389,0.73276462,62048.0,62047.0,0.46477384]
[1722698156596,0.32376462,62048.0,62047.0,0.30360584]
[1722698156811,0.20374091,62048.0,62047.0,0.30360584]
[1722698157022,0.99556791,62048.0,62047.0,0.30360584]
[1722698157234,1.12956171,62048.0,62047.0,0.30360584]
[1722698157447,1.56089271,62048.0,62047.0,0.29369999]
[1722698157688,1.65189271,62048.0,62047.0,0.29369999]
[1722698157901,1.67489271,62048.0,62047.0,0.14999999]
[1722698158116,1.99722371,62048.0,62047.0,0.14999999]
[1722698158323,1.99022371,62048.0,62047.0,0.14999999]
[1722698158529,1.96694204,62048.0,62047.0,0.14999999]
[1722698159137,2.66594204,62048.0,62047.0,0.14999999]
[1722698159366,2.67594204,62048.0,62047.0,0.14999999]
[1722698159785,2.67494204,62048.0,62047.0,0.14999999]
[1722698160194,2.68594204,62048.0,62047.0,0.14999999]
[1722698160634,2.34061104,62048.0,62047.0,0.14999999]
[1722698160854,2.40523837,62048.0,62047.0,0.14999999]
[1722698161722,1.96160008,62048.0,62047.0,0.14999999]
[1722698161924,1.4410518,62048.0,62047.0,0.14999999]
[1722698162142,0.6410518,62048.0,62047.0,0.14999999]
[1722698162346,1.28290737,62048.0,62047.0,0.15992134]
[1722698162981,0.47708037,62048.0,62047.0,0.30562134]
[1722698163200,0.96057637,62048.0,62047.0,0.30562134]
[1722698163407,0.47705842,62048.0,62047.0,0.30562134]
[1722698163590,0.57705842,62048.0,62047.0,0.30562134]
[1722698164501,1.38288542,62048.0,62047.0,0.30562134]
[1722698164931,1.43910482,62048.0,62047.0,0.30562134]
[1722698165137,1.26155631,62048.0,62047.0,0.29569999]
[1722698165557,1.26155631,62048.0,62047.0,0.30562509]
[1722698166835,0.57804219,62048.0,62047.0,0.46679309]
[1722698167054,0.37705122,62048.0,62047.0,0.78912909]
[1722698167262,0.37705122,62048.0,62047.0,0.30562509]
[1722698167466,0.47361822,62048.0,62047.0,0.30562509]
[1722698167678,0.50343842,62048.0,62047.0,0.30562509]
[1722698168079,0.49343842,62048.0,62047.0,0.30562509]
[1722698168326,0.49443842,62048.0,62047.0,0.46679309]
[1722698168507,0.49343842,62048.0,62047.0,0.78912909]
[1722698169119,0.29245322,62048.0,62047.0,0.79012909]
[1722698169334,0.49343393,62048.0,62047.0,0.46779309]
[1722698169545,0.49343393,62048.0,62047.0,0.30662509]
[1722698169737,0.49343393,62048.0,62047.0,0.79170348]
[1722698169980,0.49343393,62048.0,62047.0,0.79012909]
[1722698170202,0.15845924,62048.0,62047.0,0.79012909]
[1722698170408,0.29144637,62048.0,62047.0,0.79012909]
[1722698170661,0.29144637,62048.0,62047.0,0.79212909]
[1722698171102,0.49242684,62048.0,62047.0,0.46979309]
[1722698171761,0.49242684,62048.0,62047.0,0.79212909]
[1722698172219,0.3349676,62048.0,62047.0,1.11537809]
[1722698172435,0.13398704,62048.0,62047.0,1.44771409]
[1722698172704,0.13398704,62048.0,62047.0,1.77205009]
[1722698173355,0.13398704,62048.0,62047.0,1.77005009]
[1722698173768,0.164573,62061.0,62060.0,0.161134]
[1722698173980,0.39141771,62061.0,62060.0,0.56215394]
[1722698174197,0.59235542,62061.0,62060.0,0.5698268]
[1722698174403,0.59235542,62061.0,62060.0,1.0377948]
[1722698174610,0.49235542,62061.0,62060.0,1.0377948]
[1722698175033,0.33589618,62061.0,62060.0,1.0387948]
[1722698175243,0.13495847,62061.0,62060.0,1.0487948]
[1722698175455,0.13495847,62061.0,62060.0,1.3710628]
[1722698175881,0.13495847,62061.0,62060.0,1.3610628]
[1722698176094,0.13495847,62061.0,62060.0,1.0457948]
[1722698176095,0.13595847,62061.0,62060.0,1.0457948]
[1722698176304,0.29341771,62061.0,62060.0,0.32250686]
[1722698176517,0.29341771,62061.0,62060.0,0.16137286]
[1722698176722,0.77681171,62061.0,62060.0,0.16137286]
[1722698176988,0.97774583,62061.0,62060.0,0.16137286]
[1722698177196,0.97774583,62061.0,62060.0,0.1537]
[1722698177398,0.97774583,62061.0,62060.0,0.008]
[1722698177399,1.40000883,62061.0,62060.0,0.008]
[1722698177604,0.59435183,62061.0,62060.0,0.008]
[1722698177989,0.59435183,62061.0,62060.0,0.491402]
[1722698178244,0.59335183,62061.0,62060.0,0.49806504]
[1722698178476,0.59335183,62061.0,62060.0,0.01466304]
[1722698178684,0.33689259,62061.0,62060.0,0.31477143]
[1722698178898,0.33689259,62061.0,62060.0,0.31319704]
[1722698179109,0.13495847,62061.0,62060.0,0.30619704]
[1722698179547,0.29241771,62061.0,62060.0,0.14506304]
[1722698179969,0.49335183,62061.0,62060.0,0.14506304]
[1722698180393,0.97674583,62061.0,62060.0,0.14506304]
[1722698180609,0.97574583,62061.0,62060.0,0.00766304]
[1722698180817,0.161138,62059.0,62057.0,0.00157439]
[1722698181023,0.322256,62063.0,62057.0,0.00157439]
[1722698181024,0.34769445,62058.0,62057.0,0.00157439]
[1722698181249,0.19023521,62058.0,62057.0,0.16271639]
[1722698181663,0.19023521,62058.0,62057.0,0.161142]
[1722698181815,0.19023521,62058.0,62056.0,0.22301839]
[1722698182020,0.05626974,62058.0,62057.0,0.0201207]
[1722698182226,0.19023635,62058.0,62057.0,0.18283709]
[1722698182403,0.19023635,62058.0,62057.0,0.1812627]
[1722698182983,0.19023635,62058.0,62057.0,0.1852627]
[1722698183459,0.19023635,62058.0,62057.0,0.1832627]
[1722698183665,0.19023635,62058.0,62057.0,0.1852627]
[1722698184223,0.19024434,62058.0,62057.0,0.1852627]
[1722698185138,0.19024434,62058.0,62057.0,0.0241207]
[1722698185507,0.13396729,62058.0,62057.0,0.02569509]
[1722698185722,0.13396729,62058.0,62057.0,0.50912109]
[1722698185723,0.19024434,62058.0,62057.0,0.50912109]
[1722698185925,0.29142653,62058.0,62057.0,0.165142]
[1722698186783,0.29142653,62058.0,62057.0,0.487426]
[1722698186999,0.29142653,62058.0,62057.0,0.165142]
[1722698187413,0.29142653,62058.0,62057.0,0.004]
[1722698187619,0.29142653,62058.0,62057.0,0.00557439]
[1722698188439,0.15745924,62058.0,62057.0,0.00557439]
[1722698188647,0.29142681,62058.0,62057.0,0.16671639]
[1722698188855,0.29142681,62058.0,62057.0,0.004]
[1722698189070,0.29142681,62058.0,62057.0,0.00557439]
[1722698189285,0.29142681,62058.0,62057.0,0.16671639]
[1722698189521,0.29142681,62058.0,62057.0,0.165142]
[1722698190781,0.29142681,62058.0,62057.0,0.004]
[1722698190997,0.77484481,62058.0,62057.0,0.00557439]
[1722698191222,1.41940281,62058.0,62057.0,0.004]
[1722698191445,1.8039684,62058.0,62057.0,0.004]
[1722698192115,1.8040094,62058.0,62057.0,0.004]
[1722698193384,1.8040094,62058.0,62057.0,0.002]
[1722698193603,0.905787,62051.0,62050.0,0.00157439]
[1722698193818,1.25349526,62051.0,62050.0,0.00157439]
[1722698194029,1.25349526,62051.0,62050.0,0.00926462]
[1722698194258,1.1972359,62051.0,62050.0,0.00926462]
[1722698194494,1.1972359,62051.0,62050.0,0.00157439]
[1722698194934,1.2002359,62051.0,62050.0,0.00157439]
[1722698195146,0.5556059,62051.0,62050.0,0.00157439]
[1722698195356,0.5556059,62051.0,62048.0,0.00157439]
[1722698195564,0.4526089,62050.0,62048.0,0.00157439]
[1722698195804,0.13398966,62049.0,62048.0,0.00157439]
[1722698196012,0.4526109,62049.0,62048.0,0.00157439]
[1722698196223,0.2914489,62049.0,62048.0,0.00157439]
[1722698197254,0.2914489,62049.0,62048.0,0.00357439]
[1722698197666,0.2914489,62049.0,62048.0,0.16473939]
[1722698198169,0.2914489,62049.0,62048.0,0.16773939]
[1722698198501,0.13398966,62049.0,62048.0,1.13473239]
[1722698198728,0.1,62058.0,62053.0,0.483457]
[1722698198892,0.13397671,62054.0,62053.0,0.237452]
[1722698199095,0.13397671,62054.0,62053.0,0.623557]
[1722698199326,0.13397671,62057.0,62056.0,0.805722]
[1722698199522,0.13397671,62057.0,62056.0,0.869522]
[1722698199962,0.3235,62060.0,62058.0,0.161137]
[1722698200111,0.3235,62060.0,62059.0,0.00157439]
[1722698200654,0.484634,62060.0,62057.0,0.00157439]
[1722698200880,0.161139,62058.0,62057.0,0.00157439]
[1722698201056,0.31859824,62058.0,62057.0,0.00157439]
[1722698201257,0.77484807,62058.0,62057.0,0.00157439]
[1722698201517,0.905722,62056.0,62055.0,0.00157439]
[1722698201657,0.483441,62055.0,62054.0,0.00157439]
[1722698201865,0.48345,62054.0,62053.0,0.001]
[1722698202161,0.77488007,62054.0,62053.0,0.001]
[1722698202318,0.45257907,62054.0,62051.0,0.00157439]
[1722698202548,0.45258307,62053.0,62051.0,0.00157439]
[1722698202729,0.13397083,62052.0,62050.0,0.00157439]
[1722698202937,0.77490207,62051.0,62050.0,0.00157439]
[1722698203136,0.161162,62049.0,62048.0,0.00157439]
[1722698203463,0.77491707,62049.0,62048.0,0.00157439]
[1722698203667,0.45259207,62049.0,62048.0,0.00157439]
[1722698204077,0.77491707,62049.0,62048.0,0.00157439]
[1722698204279,0.29143007,62049.0,62048.0,0.00157439]
[1722698204478,0.77491707,62049.0,62048.0,0.00157439]
[1722698204614,0.45259207,62049.0,62048.0,0.00157439]
[1722698204809,0.29143007,62049.0,62048.0,0.00157439]
[1722698205014,0.45259207,62049.0,62048.0,0.00157439]
[1722698205213,0.29143007,62049.0,62048.0,0.00157439]
[1722698205419,0.29243007,62049.0,62048.0,0.49107039]
[1722698205616,0.29343007,62049.0,62048.0,0.569696]
[1722698205828,0.29343007,62049.0,62048.0,0.0862]
[1722698206034,0.29343007,62049.0,62048.0,0.01157439]
[1722698206439,0.77691707,62049.0,62048.0,0.01157439]
[1722698206647,1.19924207,62049.0,62048.0,0.01157439]
[1722698207075,1.19924207,62049.0,62048.0,0.01]
[1722698207277,1.19924207,62049.0,62048.0,0.01248739]
[1722698207880,1.19924207,62049.0,62048.0,0.010913]
[1722698208082,1.19924207,62049.0,62048.0,0.01248739]
[1722698208285,1.19924207,62049.0,62048.0,0.010913]
[1722698208521,1.40024354,62049.0,62048.0,0.01248739]
[1722698208723,1.84557473,62049.0,62048.0,0.010913]
[1722698208900,2.02492064,62049.0,62048.0,0.010913]
[1722698209151,2.43198814,62049.0,62048.0,0.010913]
[1722698209352,2.31199973,62049.0,62048.0,0.010913]
[1722698209555,2.30999973,62049.0,62048.0,0.000913]
[1722698209760,2.30999973,62049.0,62048.0,0.001913]
[1722698209761,2.31699973,62049.0,62048.0,0.001913]
[1722698209967,2.32499973,62049.0,62048.0,0.001913]
[1722698210147,2.75639973,62049.0,62048.0,0.001913]
[1722698210607,2.77039973,62049.0,62048.0,0.001913]
[1722698210848,2.77047377,62049.0,62048.0,0.001913]
[1722698211254,2.76347377,62049.0,62048.0,0.000913]
[1722698211437,1.450489,62048.0,62047.0,0.15091299]
[1722698211667,2.91010077,62048.0,62047.0,0.15091299]
[1722698212678,2.93410077,62048.0,62047.0,0.15091299]
[1722698213301,2.56643177,62048.0,62047.0,0.15091299]
[1722698213479,2.75613177,62048.0,62047.0,0.15091299]
[1722698214330,2.72513177,62048.0,62047.0,0.15091299]
[1722698214532,2.40280077,62048.0,62047.0,0.15091299]
[1722698214751,3.10280077,62048.0,62047.0,0.15091299]
[1722698214960,3.11680077,62048.0,62047.0,0.15091299]
[1722698215166,3.10380077,62048.0,62047.0,0.15091299]
[1722698215367,3.23370506,62048.0,62047.0,0.15091299]
[1722698215571,3.10384581,62048.0,62047.0,0.15091299]
[1722698215784,3.11784581,62048.0,62047.0,0.15091299]
[1722698216430,3.10384581,62048.0,62047.0,0.15091299]
[1722698216637,3.26120098,62048.0,62047.0,0.15091299]
[1722698216842,3.29520098,62048.0,62047.0,0.15091299]
[1722698217457,3.13784581,62048.0,62047.0,0.15091299]
[1722698218978,3.44017681,62048.0,62047.0,0.15091299]
[1722698219189,3.11784581,62048.0,62047.0,0.15091299]
[1722698219396,3.46018771,62048.0,62047.0,0.15091299]
[1722698220012,3.11785671,62048.0,62047.0,0.15091299]
[1722698220213,3.1206634,62048.0,62047.0,0.15091299]
[1722698220621,3.23045341,62048.0,62047.0,0.15091299]
[1722698220832,3.24045341,62048.0,62047.0,0.15091299]
[1722698221022,3.1206634,62048.0,62047.0,0.15091299]
[1722698221267,3.2304565,62048.0,62047.0,0.15091299]
[1722698221465,3.0607565,62048.0,62047.0,0.15091299]
[1722698221675,3.06074068,62048.0,62047.0,0.15091299]
[1722698221877,6.91648225,62048.0,62047.0,0.15091299]
[1722698223256,7.04248225,62048.0,62047.0,0.15091299]
[1722698223467,6.92268915,62048.0,62047.0,0.15091299]
[1722698224034,7.10278915,62048.0,62047.0,0.15091299]
[1722698224435,7.19857175,62048.0,62047.0,0.15091299]
[1722698224641,7.32875815,62048.0,62047.0,0.15091299]
[1722698224852,4.08287105,62048.0,62047.0,0.15091299]
[1722698225086,4.08287105,62048.0,62047.0,0.21611299]
[1722698225087,2.35095524,62048.0,62047.0,0.21611299]
[1722698225274,1.78496728,62048.0,62047.0,0.21611299]
[1722698225483,1.78496728,62048.0,62047.0,0.15091299]
[1722698225484,2.09329828,62048.0,62047.0,0.15091299]
[1722698225691,2.45787333,62048.0,62047.0,0.15091299]
[1722698225901,2.61665504,62048.0,62047.0,0.15091299]
[1722698226097,2.60265504,62048.0,62047.0,0.15091299]
[1722698226510,2.71065504,62048.0,62047.0,0.15091299]
[1722698226713,2.53862928,62048.0,62047.0,0.15091299]
[1722698227118,2.73965356,62048.0,62047.0,0.15091299]
[1722698227931,2.81775356,62048.0,62047.0,0.15091299]
[1722698228138,2.83175356,62048.0,62047.0,0.15091299]
[1722698228547,2.80376791,62048.0,62047.0,0.15091299]
[1722698228743,2.82976791,62048.0,62047.0,0.15091299]
[1722698229417,2.83176791,62048.0,62047.0,0.15091299]
[1722698229668,2.75366791,62048.0,62047.0,0.15091299]
[1722698229878,2.76766791,62048.0,62047.0,0.15091299]
[1722698231164,2.10000591,62048.0,62047.0,0.15091299]
[1722698231364,1.89897551,62048.0,62047.0,0.15091299]
[1722698231577,2.22130651,62048.0,62047.0,0.15091299]
[1722698231987,2.73065009,62048.0,62047.0,0.15091299]
[1722698232197,2.58587469,62048.0,62047.0,0.15091299]
[1722698232428,2.38931356,62048.0,62047.0,0.15091299]
[1722698232636,2.07698256,62048.0,62047.0,0.15091299]
[1722698232854,1.93221275,62048.0,62047.0,0.15091299]
[1722698233099,2.25454375,62048.0,62047.0,0.15091299]
[1722698233319,2.72164892,62048.0,62047.0,0.15091299]
[1722698233977,2.74464892,62048.0,62047.0,0.15091299]
[1722698234600,2.88724892,62048.0,62047.0,0.15091299]
[1722698234810,2.74464892,62048.0,62047.0,0.15091299]
[1722698235288,2.39931792,62048.0,62047.0,0.21611299]
[1722698235496,1.87596838,62048.0,62047.0,0.21611299]
[1722698236132,2.25454933,62048.0,62047.0,0.21611299]
[1722698236351,2.39930943,62048.0,62047.0,0.21611299]
[1722698236568,2.07697843,62048.0,62047.0,0.21611299]
[1722698236776,2.25457051,62048.0,62047.0,0.21611299]
[1722698237182,1.60990851,62048.0,62047.0,0.21611299]
[1722698237411,1.60993066,62048.0,62047.0,0.21611299]
[1722698237620,2.25459266,62048.0,62047.0,0.23623369]
[1722698237827,2.39930639,62048.0,62047.0,0.21611299]
[1722698238035,2.07697539,62048.0,62047.0,0.21611299]
[1722698238245,1.87596838,62048.0,62047.0,0.21611299]
[1722698238444,2.07697517,62048.0,62047.0,0.21611299]
[1722698238882,1.9322609,62048.0,62047.0,0.21611299]
[1722698239303,2.07696473,62048.0,62047.0,0.21611299]
[1722698239510,1.93226069,62048.0,62047.0,0.21611299]
[1722698239968,2.07696465,62048.0,62047.0,0.21611299]
[1722698240197,1.93228386,62048.0,62047.0,0.21611299]
[1722698241178,2.39929553,62048.0,62047.0,0.21611299]
[1722698241379,2.25461422,62048.0,62047.0,0.21611299]
[1722698241584,2.3992959,62048.0,62047.0,0.21611299]
[1722698242421,2.07780256,62048.0,62047.0,0.21611299]
[1722698242626,2.40013356,62048.0,62047.0,0.15091299]
[1722698243471,2.54583356,62048.0,62047.0,0.15091299]
[1722698243650,2.61690267,62048.0,62047.0,0.15091299]
[1722698243892,2.93923367,62048.0,62047.0,0.15091299]
[1722698244101,2.96326703,62048.0,62047.0,0.15091299]
[1722698244310,2.9078538,62048.0,62047.0,0.15091299]
[1722698244522,2.89116456,62048.0,62047.0,0.15091299]
[1722698244721,3.01133535,62048.0,62047.0,0.15091299]
[1722698244932,2.98731175,62048.0,62047.0,0.15091299]
[1722698245135,3.68731175,62048.0,62047.0,0.15091299]
[1722698245340,3.59116456,62048.0,62047.0,0.15091299]
[1722698245766,3.57847824,62048.0,62047.0,0.15091299]
[1722698245987,3.91355817,62048.0,62047.0,0.15091299]
[1722698246474,3.59122717,62048.0,62047.0,0.15091299]
[1722698246690,3.89122717,62048.0,62047.0,0.15091299]
[1722698246898,3.86576718,62048.0,62047.0,0.15091299]
[1722698247511,3.74552717,62048.0,62047.0,0.15091299]
[1722698248132,3.16580687,62048.0,62047.0,0.15091299]
[1722698248347,3.04552717,62048.0,62047.0,0.15091299]
[1722698249443,3.36785817,62048.0,62047.0,0.15091299]
[1722698249657,4.06785817,62048.0,62047.0,0.15091299]
[1722698250749,4.81354434,62048.0,62047.0,0.15091299]
[1722698250973,4.39365817,62048.0,62047.0,0.15091299]
[1722698251428,4.71598917,62048.0,62047.0,0.15091299]
[1722698251665,4.72698917,62048.0,62047.0,0.15091299]
[1722698251893,4.72698917,62048.0,62047.0,0.11867899]
[1722698252076,4.88942237,62048.0,62047.0,0.11867899]
[1722698252313,4.87942237,62048.0,62047.0,0.11867899]
[1722698252524,4.73098917,62048.0,62047.0,0.11867899]
[1722698252745,4.74502147,62048.0,62047.0,0.11867899]
[1722698253165,4.73502147,62048.0,62047.0,0.11867899]
[1722698253783,4.74502147,62048.0,62047.0,0.11867899]
[1722698254445,4.41645467,62048.0,62047.0,0.11867899]
[1722698254687,3.90545467,62048.0,62047.0,0.11867899]
[1722698255370,3.90545467,62048.0,62047.0,0.0191697]
[1722698255371,3.92037664,62048.0,62047.0,0.0191697]
[1722698255618,3.76302147,62048.0,62047.0,0.0191697]
[1722698256046,3.41390924,62048.0,62047.0,0.0191697]
[1722698256247,3.73503127,62048.0,62047.0,0.0191697]
[1722698256456,3.74903127,62048.0,62047.0,0.0191697]
[1722698256668,3.74303127,62048.0,62047.0,0.0191697]
[1722698256878,3.90053127,62048.0,62047.0,0.0191697]
[1722698257092,7.10265127,62048.0,62047.0,0.0191697]
[1722698257295,7.12265127,62048.0,62047.0,7e-07]
[1722698257502,7.10265127,62048.0,62047.0,7e-07]
[1722698258344,7.12265127,62048.0,62047.0,7e-07]
[1722698258463,7.10265127,62048.0,62047.0,7e-07]
[1722698259500,10.73770674,62048.0,62047.0,7e-07]
[1722698260295,2.112403,62045.0,62044.0,0.01159608]
[1722698260655,4.94148427,62045.0,62044.0,0.01159608]
[1722698261366,5.06577139,62045.0,62044.0,0.01159608]
[1722698261572,5.06576269,62045.0,62044.0,0.01159608]
[1722698261783,4.88913562,62045.0,62044.0,0.01159608]
[1722698262004,5.14742273,62045.0,62044.0,0.01159608]
[1722698262212,4.32713562,62045.0,62044.0,0.01159608]
[1722698262638,4.76952862,62045.0,62044.0,0.01159608]
[1722698262837,4.91182862,62045.0,62044.0,0.01159608]
[1722698263076,4.81178162,62045.0,62044.0,0.01159608]
[1722698263293,5.51179145,62045.0,62044.0,0.01159608]
[1722698264762,5.51179145,62045.0,62044.0,8e-08]
[1722698264763,5.92079145,62045.0,62044.0,8e-08]
[1722698264935,6.07814662,62045.0,62044.0,8e-08]
[1722698265134,6.64957982,62045.0,62044.0,8e-08]
[1722698265367,7.34914662,62045.0,62044.0,8e-08]
[1722698265738,7.51136404,62045.0,62044.0,8e-08]
[1722698265892,7.34914662,62045.0,62044.0,8e-08]
[1722698266468,7.51134932,62045.0,62044.0,8e-08]
[1722698266672,1.873073,62039.0,62038.0,0.14861818]
[1722698266877,4.14608046,62039.0,62038.0,0.14861818]
[1722698267087,3.81093224,62039.0,62038.0,0.14861818]
[1722698267303,4.14608392,62039.0,62038.0,0.14861818]
[1722698267503,4.14889182,62039.0,62038.0,0.14861818]
[1722698268790,4.1887661,62039.0,62038.0,0.14861818]
[1722698269029,4.2027661,62039.0,62038.0,0.14861818]
[1722698269238,4.2167661,62039.0,62038.0,0.14861818]
[1722698269466,0.43,62037.0,62029.0,0.14999999]
[1722698269696,0.803622,62026.0,62015.0,0.14999999]
[1722698269907,10.54957839,62026.0,62025.0,0.03646934]
[1722698270120,10.54957839,62026.0,62015.0,0.14999999]
[1722698270121,11.61991339,62026.0,62015.0,0.14999999]
[1722698270352,11.61991339,62026.0,62011.0,0.090877]
[1722698270353,0.561259,62012.0,62011.0,0.009977]
[1722698270586,0.561259,62012.0,62010.0,0.14999999]
[1722698270587,0.763884,62011.0,62010.0,0.03096499]
[1722698270811,2.52852768,62011.0,62010.0,0.03096499]
[1722698271021,3.64708392,62011.0,62010.0,0.03096499]
[1722698271235,3.32456092,62011.0,62010.0,0.03096499]
[1722698271444,1.74444092,62011.0,62010.0,0.10971693]
[1722698271689,2.09891792,62011.0,62010.0,0.10971693]
[1722698271892,1.09151991,62011.0,62010.0,0.17391693]
[1722698272096,0.55278091,62011.0,62010.0,0.17391693]
[1722698272324,1.19782691,62011.0,62010.0,0.17391693]
[1722698272529,2.05850362,62011.0,62010.0,0.17391693]
[1722698272734,1.75850362,62011.0,62010.0,0.17391693]
[1722698272958,2.07250362,62011.0,62010.0,0.17391693]
[1722698273164,1.75850362,62011.0,62010.0,0.17391693]
[1722698273579,2.4445395,62011.0,62010.0,0.17391693]
[1722698273788,2.5585395,62011.0,62010.0,0.17391693]
[1722698274001,3.1810625,62011.0,62010.0,0.03096499]
[1722698274640,2.5715395,62011.0,62010.0,0.00566499]
[1722698275255,2.8575395,62011.0,62010.0,0.00566499]
[1722698275467,2.8575395,62011.0,62010.0,0.00657799]